bitfinex-derivatives/quotes_BTCF0:USTF0_20240825
["timestamp","ask_amount","ask_price","bid_price","bid_amount"]
[1724624798677,0.287576,64421.0,64420.0,0.0002329]
[1724624799383,0.287976,64421.0,64420.0,0.0002329]
[1724624799572,0.078976,64421.0,64420.0,0.0002329]
[1724624799887,0.078976,64421.0,64420.0,0.04668523]
[1724624800186,0.078976,64421.0,64420.0,0.0102329]
[1724624800187,0.0014,64421.0,64420.0,0.0102329]
[1724624800484,0.0014,64421.0,64420.0,0.5534899]
[1724624801407,0.0014,64421.0,64420.0,0.9534899]
[1724624801579,0.0014,64421.0,64420.0,0.5534899]
[1724624804586,0.0014,64421.0,64420.0,0.9534899]
[1724624804975,0.0014,64421.0,64420.0,0.5534899]
[1724624805184,0.0014,64421.0,64420.0,0.0878099]
[1724624805584,0.0014,64421.0,64420.0,0.0102329]
[1724624805886,0.078976,64421.0,64420.0,0.0002329]
[1724624808480,0.078976,64421.0,64420.0,0.0978099]
[1724624808481,0.0014,64421.0,64420.0,0.0978099]
[1724624810085,0.078976,64421.0,64420.0,0.0202329]
[1724624811002,0.078976,64421.0,64420.0,0.0002329]
[1724624811498,0.288976,64421.0,64420.0,0.0002329]
[1724624811988,0.077588,64412.0,64409.0,0.04638233]
[1724624812286,0.077589,64410.0,64409.0,0.03]
[1724624812479,0.077589,64410.0,64409.0,0.01]
[1724624812680,0.0004,64410.0,64409.0,0.01]
[1724624813085,0.0004,64410.0,64409.0,0.087591]
[1724624814081,0.0004,64410.0,64409.0,0.089591]
[1724624814784,0.0004,64410.0,64409.0,0.087591]
[1724624814986,0.0014,64410.0,64409.0,0.089591]
[1724624817989,0.077585,64414.0,64409.0,0.1514677]
[1724624818290,0.077585,64414.0,64412.0,0.04641479]
[1724624818491,0.077585,64414.0,64412.0,0.05641479]
[1724624820388,0.077585,64414.0,64413.0,0.04641479]
[1724624820389,0.078585,64414.0,64413.0,0.04641479]
[1724624820692,0.077587,64412.0,64411.0,0.04641479]
[1724624820996,0.077589,64410.0,64409.0,0.04941479]
[1724624821187,0.0493,64411.0,64408.0,0.04644485]
[1724624821394,0.077592,64408.0,64407.0,0.04644485]
[1724624821787,0.077592,64408.0,64407.0,0.05644485]
[1724624822183,0.077592,64408.0,64407.0,0.01]
[1724624823797,0.078592,64408.0,64407.0,0.013]
[1724624826200,0.078592,64408.0,64407.0,0.003]
[1724624829295,0.544392,64408.0,64407.0,0.003]
[1724624830201,0.15519,64405.0,64404.0,0.35883086]
[1724624830404,0.155194,64404.0,64403.0,0.0002329]
[1724624830795,0.365194,64404.0,64403.0,0.0002329]
[1724624831192,0.287597,64404.0,64403.0,0.0002329]
[1724624831392,0.077597,64404.0,64403.0,0.0002329]
[1724624831697,0.077597,64404.0,64403.0,0.0102329]
[1724624832896,0.077597,64404.0,64403.0,0.0002329]
[1724624833802,0.077597,64404.0,64403.0,0.0102329]
[1724624834612,0.077597,64404.0,64403.0,0.0002329]
[1724624834825,0.078597,64404.0,64403.0,0.0002329]
[1724624835023,0.439397,64404.0,64403.0,0.0002329]
[1724624835616,0.516994,64404.0,64403.0,0.0002329]
[1724624835819,1.382794,64404.0,64403.0,0.0002329]
[1724624836213,1.46003042,64404.0,64403.0,0.0002329]
[1724624836619,1.46003042,64404.0,64390.0,0.00011476]
[1724624836620,0.077612,64391.0,64390.0,0.00011476]
[1724624837014,0.543532,64391.0,64390.0,0.00011476]
[1724624838627,0.077612,64391.0,64390.0,0.00011476]
[1724624838820,0.078612,64391.0,64390.0,0.00011476]
[1724624839330,0.078612,64391.0,64390.0,0.01011476]
[1724624842256,0.078612,64391.0,64390.0,0.00011476]
[1724624842717,0.078612,64391.0,64390.0,0.01011476]
[1724624844121,0.078612,64391.0,64390.0,0.00011476]
[1724624845024,0.156224,64391.0,64390.0,0.00011476]
[1724624845228,0.299024,64391.0,64390.0,0.00011476]
[1724624845921,1.165058,64391.0,64390.0,7.6e-07]
[1724624846319,1.22687221,64391.0,64390.0,7.6e-07]
[1724624846521,1.165058,64391.0,64390.0,7.6e-07]
[1724624846921,1.525858,64391.0,64390.0,7.6e-07]
[1724624848416,0.659938,64391.0,64390.0,7.6e-07]
[1724624848631,0.784018,64391.0,64390.0,7.6e-07]
[1724624849228,0.487126,64391.0,64390.0,7.6e-07]
[1724624849617,0.697126,64391.0,64390.0,7.6e-07]
[1724624849820,0.774738,64391.0,64390.0,7.6e-07]
[1724624852527,1.71789442,64391.0,64390.0,7.6e-07]
[1724624852728,1.640658,64391.0,64390.0,7.6e-07]
[1724624856431,1.240658,64391.0,64390.0,7.6e-07]
[1724624857043,1.640658,64391.0,64390.0,7.6e-07]
[1724624858431,1.641058,64391.0,64390.0,7.6e-07]
[1724624858935,0.649926,64391.0,64390.0,7.6e-07]
[1724624859444,0.439926,64391.0,64390.0,7.6e-07]
[1724624859633,0.439926,64391.0,64390.0,0.01000076]
[1724624859945,0.439926,64391.0,64390.0,7.6e-07]
[1724624861234,0.079126,64391.0,64390.0,0.01000076]
[1724624861636,0.079126,64391.0,64390.0,7.6e-07]
[1724624861938,0.079126,64391.0,64390.0,0.04645402]
[1724624862132,0.079126,64391.0,64390.0,0.01000076]
[1724624862333,0.079126,64391.0,64390.0,0.05643546]
[1724624862533,0.079126,64391.0,64390.0,0.01000076]
[1724624862835,0.079126,64391.0,64390.0,7.6e-07]
[1724624864032,0.079126,64391.0,64390.0,0.01000076]
[1724624865334,0.001514,64391.0,64390.0,0.08761376]
[1724624865741,0.077609,64394.0,64391.0,0.077612]
[1724624865942,0.077609,64394.0,64393.0,0.3608]
[1724624866838,0.078609,64394.0,64393.0,0.3608]
[1724624868935,0.078609,64394.0,64393.0,0.3708]
[1724624870841,0.078609,64394.0,64393.0,0.41728124]
[1724624871042,0.078609,64394.0,64393.0,0.49489124]
[1724624871043,0.001,64394.0,64393.0,0.49489124]
[1724624871242,0.001,64394.0,64393.0,0.44841]
[1724624872146,0.001,64394.0,64393.0,0.49486722]
[1724624873048,0.001,64394.0,64393.0,0.44841]
[1724624873437,0.06278434,64394.0,64393.0,0.44841]
[1724624874152,0.001,64394.0,64393.0,0.44841]
[1724624878453,0.06278434,64394.0,64393.0,0.44841]
[1724624879246,0.001,64394.0,64393.0,0.44841]
[1724624879545,0.06278434,64394.0,64393.0,0.44841]
[1724624879947,0.14039334,64394.0,64393.0,0.44841]
[1724624881450,0.078609,64394.0,64393.0,0.44841]
[1724624882847,0.078609,64394.0,64393.0,0.49486722]
[1724624884257,0.078609,64394.0,64390.0,0.06237086]
[1724624884258,0.001,64394.0,64390.0,0.00040076]
[1724624884462,0.648412,64391.0,64390.0,0.04685797]
[1724624884757,0.077612,64391.0,64390.0,0.00040076]
[1724624884951,0.078012,64391.0,64390.0,0.00040076]
[1724624885255,0.155624,64391.0,64390.0,0.00040076]
[1724624885456,0.42740834,64391.0,64390.0,0.00140076]
[1724624885851,0.365624,64391.0,64390.0,0.00140076]
[1724624886052,0.42757693,64391.0,64390.0,0.00140076]
[1724624886251,0.156624,64391.0,64390.0,0.00140076]
[1724624887358,0.079012,64391.0,64390.0,0.00140076]
[1724624887758,0.079012,64391.0,64390.0,0.04785797]
[1724624888060,0.079012,64391.0,64390.0,0.00140076]
[1724624888359,0.079012,64391.0,64390.0,0.04789272]
[1724624888554,0.079012,64391.0,64390.0,0.00140076]
[1724624888751,0.079012,64391.0,64390.0,0.04790395]
[1724624890558,0.079012,64391.0,64390.0,0.00140076]
[1724624891256,0.079012,64391.0,64390.0,0.04791875]
[1724624891761,0.079012,64391.0,64390.0,0.00140076]
[1724624891948,0.079012,64391.0,64390.0,0.01140076]
[1724624892261,0.0014,64391.0,64390.0,0.08901376]
[1724624892657,0.0014,64391.0,64390.0,0.28475658]
[1724624892965,0.0014,64391.0,64390.0,0.20727881]
[1724624893153,0.0002329,64397.0,64390.0,0.99558581]
[1724624893374,0.0002329,64397.0,64396.0,0.077606]
[1724624893674,0.0002329,64397.0,64396.0,0.097606]
[1724624893957,0.0002329,64397.0,64396.0,0.098006]
[1724624894264,0.0002329,64397.0,64396.0,0.29376546]
[1724624894455,0.0002329,64397.0,64396.0,0.17551425]
[1724624895053,0.0002329,64397.0,64396.0,0.29376333]
[1724624895248,0.0012329,64397.0,64396.0,0.29376333]
[1724624895448,0.0012329,64397.0,64396.0,0.21625508]
[1724624895851,0.0002329,64397.0,64396.0,0.21625508]
[1724624896049,0.0002329,64397.0,64396.0,0.099006]
[1724624896050,0.0012329,64397.0,64396.0,0.099006]
[1724624896602,0.06318583,64397.0,64396.0,0.099006]
[1724624896668,0.0012329,64397.0,64396.0,0.099006]
[1724624897965,0.06321593,64397.0,64396.0,0.099006]
[1724624898958,0.0012329,64397.0,64396.0,0.099006]
[1724624899172,0.06321593,64397.0,64396.0,0.099006]
[1724624900353,0.0012329,64397.0,64396.0,0.099006]
[1724624900761,0.0012329,64397.0,64396.0,0.564886]
[1724624901360,0.0012329,64397.0,64396.0,1.01136154]
[1724624901568,0.06198303,64401.0,64396.0,1.01136154]
[1724624901569,0.06198303,64402.0,64401.0,0.0776]
[1724624901765,0.06198303,64403.0,64402.0,0.077599]
[1724624902067,0.077596,64405.0,64402.0,0.077599]
[1724624902068,0.077596,64405.0,64402.0,0.224199]
[1724624902857,0.077596,64405.0,64404.0,0.0004]
[1724624903542,0.077596,64405.0,64404.0,0.0104]
[1724624904769,0.077596,64405.0,64404.0,0.0114]
[1724624906788,0.077596,64405.0,64404.0,0.05784159]
[1724624906967,0.077596,64405.0,64404.0,0.0114]
[1724624908668,0.077596,64405.0,64404.0,0.05780481]
[1724624908869,0.077596,64405.0,64404.0,0.0114]
[1724624909172,0.077596,64405.0,64404.0,0.05780443]
[1724624911271,0.0002329,64410.0,64404.0,0.0114]
[1724624911476,0.06189171,64406.0,64404.0,0.0114]
[1724624911778,0.13948471,64407.0,64404.0,0.0114]
[1724624912466,0.06149171,64406.0,64404.0,0.0114]
[1724624912781,0.13908471,64407.0,64404.0,0.011]
[1724624915179,0.077593,64407.0,64404.0,0.01]
[1724624915380,0.077593,64407.0,64404.0,0.011]
[1724624915785,0.077593,64407.0,64405.0,0.077595]
[1724624915986,0.077593,64407.0,64405.0,0.167595]
[1724624916188,0.0002329,64410.0,64406.0,0.077594]
[1724624916480,0.0002329,64410.0,64409.0,0.3608]
[1724624916682,0.0002329,64410.0,64409.0,0.3808]
[1724624916878,0.0002329,64410.0,64409.0,0.3812]
[1724624917784,0.0818219,64410.0,64409.0,0.3612]
[1724624918089,0.0818219,64410.0,64409.0,0.3712]
[1724624918583,0.0818219,64410.0,64409.0,0.3612]
[1724624918781,0.0818219,64410.0,64404.0,0.06196739]
[1724624918782,1.4407929,64410.0,64404.0,0.04638994]
[1724624918982,0.077601,64400.0,64399.0,0.04638994]
[1724624919183,0.077603,64399.0,64398.0,0.40718994]
[1724624919485,0.125303,64399.0,64398.0,0.3608]
[1724624919885,0.125703,64399.0,64398.0,0.3608]
[1724624920081,0.125703,64399.0,64398.0,0.3708]
[1724624920787,0.126703,64399.0,64398.0,0.3738]
[1724624921580,0.126703,64399.0,64398.0,0.43576739]
[1724624922473,0.126703,64399.0,64398.0,0.3738]
[1724624922684,0.126703,64399.0,64398.0,0.3638]
[1724624922875,0.204306,64399.0,64398.0,0.04947519]
[1724624923076,0.204306,64399.0,64398.0,0.003]
[1724624923277,0.126703,64399.0,64398.0,0.003]
[1724624923477,0.126703,64399.0,64398.0,0.04947519]
[1724624923685,0.126703,64399.0,64398.0,0.003]
[1724624923886,0.126703,64399.0,64398.0,0.013]
[1724624924785,0.14743522,64399.0,64398.0,0.003]
[1724624924992,0.22503822,64399.0,64398.0,0.003]
[1724624925182,0.14743522,64399.0,64398.0,0.003]
[1724624926888,0.22503822,64399.0,64398.0,0.003]
[1724624927195,0.14743522,64399.0,64398.0,0.003]
[1724624927583,0.22503822,64399.0,64398.0,0.003]
[1724624927895,0.22503822,64399.0,64398.0,0.0007671]
[1724624927896,1.09087822,64399.0,64398.0,0.0007671]
[1724624928491,1.45167822,64399.0,64398.0,0.0007671]
[1724624929199,0.155208,64398.0,64397.0,0.0002329]
[1724624929380,0.155224,64391.0,64378.0,0.3608]
[1724624929581,0.726024,64391.0,64378.0,0.38143476]
[1724624929782,1.591944,64391.0,64378.0,0.38143476]
[1724624929985,1.591944,64391.0,64378.0,0.3608]
[1724624930188,1.592344,64391.0,64378.0,0.3608]
[1724624930381,1.639244,64391.0,64378.0,0.3608]
[1724624930591,1.239244,64391.0,64378.0,0.3608]
[1724624931291,1.362484,64391.0,64378.0,0.3608]
[1724624931994,1.762484,64391.0,64378.0,0.3608]
[1724624932297,1.639244,64391.0,64378.0,0.3608]
[1724624932484,0.97318518,64391.0,64378.0,0.3608]
[1724624932686,0.896804,64391.0,64378.0,0.3608]
[1724624932991,0.91812513,64391.0,64378.0,0.3608]
[1724624933378,0.58564513,64391.0,64378.0,0.3608]
[1724624933585,0.58564513,64391.0,64384.0,0.3608]
[1724624934296,0.58564513,64391.0,64384.0,0.40726757]
[1724624934486,0.58564513,64391.0,64384.0,0.3608]
[1724624934790,0.58564513,64391.0,64384.0,0.40726757]
[1724624935074,0.079012,64391.0,64390.0,0.36120076]
[1724624935303,0.079012,64391.0,64390.0,0.37120076]
[1724624935791,0.079012,64391.0,64390.0,0.36120076]
[1724624936488,0.079012,64391.0,64390.0,0.37120076]
[1724624936681,0.079012,64391.0,64390.0,0.36120076]
[1724624937986,0.079012,64391.0,64390.0,0.37120076]
[1724624938695,0.079012,64391.0,64390.0,0.36120076]
[1724624939499,0.079012,64391.0,64390.0,0.37120076]
[1724624940086,0.079012,64391.0,64390.0,0.36120076]
[1724624945701,0.079012,64391.0,64390.0,0.37120076]
[1724624946610,0.079012,64391.0,64390.0,0.44881376]
[1724624946817,0.0014,64391.0,64390.0,0.49528133]
[1724624946997,0.0014,64391.0,64390.0,0.91473376]
[1724624947193,0.0002329,64397.0,64396.0,0.077606]
[1724624947503,0.0002329,64397.0,64396.0,0.538406]
[1724624947893,0.0002329,64397.0,64396.0,0.538806]
[1724624948810,0.0012329,64397.0,64396.0,0.539806]
[1724624949593,0.0788379,64397.0,64396.0,0.4622]
[1724624950310,0.0788379,64397.0,64396.0,0.3622]
[1724624955506,0.0788379,64397.0,64396.0,0.3722]
[1724624964599,0.0788379,64397.0,64396.0,0.449806]
[1724624965113,0.0012329,64397.0,64396.0,0.449806]
[1724624965506,0.0012329,64397.0,64396.0,0.915686]
[1724624965712,0.0776,64402.0,64401.0,0.0776]
[1724624966008,0.0776,64402.0,64401.0,0.1376]
[1724624966509,0.0776,64402.0,64401.0,0.138]
[1724624967501,0.0776,64402.0,64401.0,0.0004]
[1724624967813,0.0776,64402.0,64401.0,0.0024]
[1724624968113,0.1676,64402.0,64401.0,0.0024]
[1724624969202,0.1676,64402.0,64401.0,0.0124]
[1724624969403,0.24506187,64402.0,64401.0,0.0124]
[1724624969704,0.1676,64402.0,64401.0,0.0124]
[1724624971609,0.1676,64402.0,64401.0,0.0024]
[1724624972016,0.1676,64402.0,64401.0,0.05883283]
[1724624972209,0.1676,64402.0,64401.0,0.05883241]
[1724624972509,0.1676,64402.0,64401.0,0.0024]
[1724624973311,0.22959407,64402.0,64401.0,0.0024]
[1724624974609,0.22959407,64402.0,64401.0,0.0124]
[1724624975308,0.1676,64402.0,64401.0,0.0124]
[1724624977219,0.1676,64402.0,64401.0,0.0024]
[1724624977412,0.1676,64402.0,64401.0,0.06440672]
[1724624978714,0.27517492,64402.0,64401.0,0.0024]
[1724624979313,1.50181492,64402.0,64401.0,0.0024]
[1724624979514,0.155212,64396.0,64395.0,0.0002329]
[1724624979711,0.54599064,64396.0,64395.0,0.0002329]
[1724624979912,1.44987883,64396.0,64395.0,0.0002329]
[1724624980118,1.65987883,64396.0,64395.0,0.0002329]
[1724624980328,1.73085867,64396.0,64395.0,0.0002329]
[1724624980718,1.62327064,64396.0,64395.0,0.0022329]
[1724624981216,1.73185961,64396.0,64395.0,0.0022329]
[1724624981422,1.62327064,64396.0,64395.0,0.0022329]
[1724624982621,1.43419079,64396.0,64395.0,0.0022329]
[1724624984620,1.03419079,64396.0,64395.0,0.0022329]
[1724624985321,1.00421215,64396.0,64395.0,0.0022329]
[1724624989620,0.53833215,64396.0,64395.0,0.0022329]
[1724625000126,0.62833215,64396.0,64395.0,0.0022329]
[1724625002223,0.53833215,64396.0,64395.0,0.0022329]
[1724625002428,0.74973215,64396.0,64395.0,0.0022329]
[1724625002732,0.67212615,64396.0,64395.0,0.0022329]
[1724625002939,0.09992615,64396.0,64395.0,0.0222329]
[1724625003227,0.079006,64396.0,64395.0,0.0222329]
[1724625003422,0.169006,64396.0,64395.0,0.0222329]
[1724625003629,0.169006,64396.0,64395.0,0.0022329]
[1724625003823,0.169006,64396.0,64395.0,0.0122329]
[1724625005431,0.079006,64396.0,64395.0,0.0122329]
[1724625005646,0.079006,64396.0,64395.0,0.05873876]
[1724625006136,0.0014,64396.0,64395.0,0.0898399]
[1724625006336,0.06195493,64406.0,64398.0,0.077604]
[1724625006634,0.06195493,64406.0,64404.0,0.3608]
[1724625006635,0.077595,64405.0,64404.0,0.3608]
[1724625007436,0.077595,64405.0,64404.0,0.3708]
[1724625008435,0.18891803,64405.0,64404.0,0.3608]
[1724625009441,0.18891803,64405.0,64404.0,0.3618]
[1724625011131,0.18891803,64405.0,64404.0,0.001]
[1724625013533,0.18891803,64405.0,64404.0,0.3618]
[1724625013534,0.077595,64405.0,64404.0,0.3618]
[1724625013733,0.077595,64405.0,64404.0,0.3718]
[1724625014047,0.0002329,64408.0,64407.0,0.077593]
[1724625014346,0.0002329,64408.0,64407.0,0.448393]
[1724625014535,0.0002329,64408.0,64407.0,0.914193]
[1724625014730,0.0002329,64408.0,64407.0,0.448793]
[1724625014944,0.0778249,64408.0,64407.0,0.914593]
[1724625015445,0.0808249,64408.0,64407.0,0.914593]
[1724625015647,0.0808249,64408.0,64407.0,0.448793]
[1724625015840,0.15824922,64408.0,64407.0,0.448793]
[1724625016033,0.15824922,64408.0,64407.0,0.3712]
[1724625016239,0.15824922,64408.0,64407.0,0.3612]
[1724625016441,0.1584169,64408.0,64407.0,0.0004]
[1724625016631,0.1584169,64408.0,64399.0,0.0464]
[1724625016632,0.077601,64400.0,64399.0,0.0464]
[1724625017943,0.077601,64400.0,64393.0,0.3608]
[1724625017944,0.077606,64396.0,64393.0,0.3608]
[1724625018250,0.287606,64396.0,64393.0,0.3608]
[1724625018641,0.38080517,64396.0,64393.0,0.3608]
[1724625018838,0.288006,64396.0,64393.0,0.3608]
[1724625019546,0.17180517,64396.0,64395.0,0.0012329]
[1724625022051,0.079006,64396.0,64395.0,0.0012329]
[1724625022244,0.079006,64396.0,64395.0,0.0312329]
[1724625022245,0.15637282,64396.0,64395.0,0.0312329]
[1724625022440,0.079006,64396.0,64395.0,0.0312329]
[1724625023046,0.0014,64396.0,64395.0,0.8971129]
[1724625023237,0.0014,64396.0,64395.0,0.9747199]
[1724625023650,0.079006,64396.0,64395.0,0.0312329]
[1724625025561,0.079006,64396.0,64395.0,0.0012329]
[1724625026753,0.156612,64396.0,64395.0,0.0012329]
[1724625028542,0.079006,64396.0,64395.0,0.0012329]
[1724625028753,0.079006,64396.0,64395.0,0.0112329]
[1724625028943,0.079006,64396.0,64395.0,0.05757424]
[1724625029145,0.0014,64396.0,64395.0,0.4771129]
[1724625029453,0.06190217,64404.0,64395.0,0.52350826]
[1724625029756,0.077603,64399.0,64398.0,0.3608]
[1724625031850,0.078603,64399.0,64398.0,0.3628]
[1724625035960,0.078603,64399.0,64398.0,0.3828]
[1724625036353,0.001,64399.0,64398.0,0.50679936]
[1724625036853,0.001,64399.0,64398.0,0.460404]
[1724625037059,0.078603,64399.0,64398.0,0.3828]
[1724625038150,0.14050517,64399.0,64398.0,0.3828]
[1724625038762,0.14050517,64399.0,64398.0,0.3628]
[1724625038961,0.078603,64399.0,64398.0,0.3628]
[1724625039269,0.10857917,64399.0,64398.0,0.3628]
[1724625039750,0.12953502,64399.0,64398.0,0.002]
[1724625042563,0.12953651,64399.0,64398.0,0.002]
[1724625043555,0.20713951,64399.0,64398.0,0.002]
[1724625043970,0.25213951,64399.0,64398.0,0.002]
[1724625044281,0.25213951,64399.0,64392.0,0.002]
[1724625044282,0.15522,64393.0,64392.0,0.002]
[1724625044449,0.75600099,64393.0,64392.0,0.002]
[1724625044847,0.75600099,64393.0,64392.0,1e-06]
[1724625045058,0.155224,64391.0,64390.0,7.6e-07]
[1724625045260,0.18520499,64391.0,64390.0,7.6e-07]
[1724625045674,0.26281699,64391.0,64390.0,7.6e-07]
[1724625045977,0.26281699,64391.0,64368.0,0.0469]
[1724625045978,0.077638,64370.0,64368.0,0.0469]
[1724625046167,0.077638,64370.0,64368.0,0.11809984]
[1724625046349,0.077638,64370.0,64369.0,0.06192528]
[1724625046548,0.077638,64370.0,64369.0,0.09192528]
[1724625047153,0.077638,64370.0,64369.0,0.03]
[1724625047360,0.078638,64370.0,64369.0,0.03]
[1724625048157,0.078638,64370.0,64369.0,0.07639178]
[1724625049162,0.078638,64370.0,64369.0,0.03]
[1724625049559,0.077638,64370.0,64369.0,0.03]
[1724625049869,0.078638,64370.0,64369.0,0.03]
[1724625052460,0.07764,64369.0,64368.0,0.06809984]
[1724625052662,0.07764,64369.0,64368.0,0.07809984]
[1724625053164,0.07804,64369.0,64368.0,0.07809984]
[1724625053563,0.07804,64369.0,64366.0,0.3608]
[1724625053767,0.07904,64369.0,64366.0,0.3708]
[1724625054359,0.0004,64367.0,64366.0,0.39191107]
[1724625054564,0.077641,64368.0,64366.0,0.85799107]
[1724625054863,0.077641,64368.0,64366.0,0.85839107]
[1724625055667,0.077641,64368.0,64366.0,0.39231107]
[1724625057368,0.078641,64368.0,64366.0,0.39231107]
[1724625058151,0.078641,64368.0,64366.0,0.46995407]
[1724625059478,0.001,64368.0,64367.0,0.077642]
[1724625059667,0.001,64368.0,64367.0,0.187642]
[1724625060063,0.0002329,64375.0,64367.0,0.187642]
[1724625060064,0.0002329,64375.0,64374.0,0.077634]
[1724625060259,0.0002329,64375.0,64374.0,1.004474]
[1724625061075,0.0002329,64375.0,64374.0,1.05086578]
[1724625061364,0.0002329,64375.0,64374.0,0.538434]
[1724625062265,0.0002329,64375.0,64374.0,0.4608]
[1724625062463,0.0778649,64375.0,64374.0,0.48154802]
[1724625062871,0.0788649,64375.0,64374.0,0.48254802]
[1724625065069,0.0788649,64375.0,64374.0,0.5289398]
[1724625066580,0.0788649,64375.0,64374.0,0.48254802]
[1724625066963,0.0012329,64375.0,64374.0,0.56018202]
[1724625068472,0.0012329,64375.0,64374.0,0.6065995]
[1724625068772,0.0788649,64375.0,64374.0,0.56018202]
[1724625068964,0.0788649,64375.0,64374.0,0.6065995]
[1724625069169,0.0788649,64375.0,64374.0,0.48254802]
[1724625071563,0.14087511,64375.0,64374.0,0.48254802]
[1724625071764,0.0788649,64375.0,64374.0,0.48254802]
[1724625071965,0.14087511,64375.0,64374.0,0.48254802]
[1724625072162,0.0788649,64375.0,64374.0,0.48254802]
[1724625073674,0.20317766,64375.0,64374.0,0.3618]
[1724625073868,0.28080966,64375.0,64374.0,0.3618]
[1724625074279,0.2032969,64375.0,64374.0,0.3618]
[1724625075889,0.0788649,64375.0,64374.0,0.3718]
[1724625076371,0.0788649,64375.0,64374.0,0.49009613]
[1724625077077,0.0788649,64375.0,64374.0,0.55767549]
[1724625077465,0.0788649,64375.0,64374.0,0.3618]
[1724625077882,0.0788649,64375.0,64374.0,0.55767895]
[1724625078578,0.0788649,64375.0,64374.0,0.3618]
[1724625078776,0.0788649,64375.0,64374.0,0.52053919]
[1724625079074,0.0788649,64375.0,64374.0,0.61351285]
[1724625079266,0.0788649,64375.0,64374.0,0.52053919]
[1724625083092,0.0012329,64375.0,64374.0,0.59817219]
[1724625083379,0.0012329,64375.0,64374.0,0.4798782]
[1724625084273,0.0012329,64375.0,64374.0,0.54194025]
[1724625084880,0.0012329,64375.0,64374.0,0.4798782]
[1724625085181,0.06327552,64375.0,64374.0,0.4798782]
[1724625089173,0.0012329,64375.0,64374.0,0.4798782]
[1724625089374,0.06329034,64375.0,64374.0,0.54194025]
[1724625090381,0.0012329,64375.0,64374.0,0.54194025]
[1724625091174,0.15828897,64390.0,64379.0,0.077627]
[1724625091175,0.06206299,64380.0,64379.0,0.077627]
[1724625091386,0.06206299,64393.0,64379.0,0.73303282]
[1724625091588,0.0775795,64397.0,64379.0,0.73303282]
[1724625091589,0.06206299,64397.0,64396.0,0.077607]
[1724625091783,0.0785395,64402.0,64398.0,0.077604]
[1724625091784,0.06206299,64402.0,64398.0,0.077604]
[1724625091982,0.077599,64403.0,64401.0,0.42282105]
[1724625092304,0.077599,64403.0,64402.0,0.04646416]
[1724625092693,0.077599,64403.0,64402.0,0.04686416]
[1724625093385,0.081599,64403.0,64402.0,0.0004]
[1724625094678,0.081599,64403.0,64402.0,0.04686416]
[1724625095385,0.081599,64403.0,64402.0,0.0004]
[1724625098890,0.159198,64403.0,64402.0,0.0004]
[1724625099586,0.22101446,64403.0,64402.0,0.0004]
[1724625099791,0.159198,64403.0,64402.0,0.0004]
[1724625101295,0.081599,64403.0,64402.0,0.0004]
[1724625102896,0.081599,64403.0,64402.0,0.0104]
[1724625104494,0.081599,64403.0,64402.0,0.0004]
[1724625104790,0.081599,64403.0,64402.0,0.0104]
[1724625105301,0.0002329,64408.0,64407.0,0.077594]
[1724625105495,0.0002329,64408.0,64407.0,1.004194]
[1724625105989,0.0002329,64408.0,64407.0,0.538794]
[1724625106501,0.0092329,64408.0,64407.0,0.538794]
[1724625114204,0.0868249,64408.0,64407.0,0.4612]
[1724625115545,0.0868249,64408.0,64407.0,0.3612]
[1724625115719,0.1347249,64408.0,64407.0,0.3612]
[1724625118905,0.0868249,64408.0,64407.0,0.732]
[1724625119130,0.0092329,64408.0,64407.0,0.809594]
[1724625121101,0.0092329,64408.0,64407.0,0.83003634]
[1724625121307,0.077583,64416.0,64407.0,1.61824234]
[1724625121496,0.077583,64416.0,64415.0,0.3608]
[1724625121703,0.077583,64416.0,64415.0,0.3908]
[1724625122098,0.0498,64423.0,64415.0,0.43764845]
[1724625122099,0.13939346,64421.0,64415.0,0.43764845]
[1724625122306,0.077579,64420.0,64417.0,0.04644845]
[1724625122506,0.077579,64420.0,64417.0,0.07644845]
[1724625122915,0.06204936,64424.0,64418.0,0.07758]
[1724625123210,0.06204936,64424.0,64422.0,0.3608]
[1724625123508,0.36176,64432.0,64422.0,0.3608]
[1724625123509,0.06181646,64431.0,64426.0,0.07757]
[1724625123704,0.06181646,64436.0,64430.0,0.3608]
[1724625123906,0.1432,64443.0,64430.0,0.3608]
[1724625123907,0.06181646,64439.0,64430.0,0.3708]
[1724625124211,0.077556,64438.0,64436.0,0.3608]
[1724625125616,0.1434329,64443.0,64436.0,0.3608]
[1724625126006,0.077552,64442.0,64436.0,0.3608]
[1724625126211,0.077552,64442.0,64436.0,0.3708]
[1724625126414,0.006,64438.0,64436.0,0.3718]
[1724625127803,0.006,64438.0,64436.0,0.39282043]
[1724625128107,0.077554,64440.0,64436.0,0.39182043]
[1724625128305,0.077554,64440.0,64436.0,0.39282043]
[1724625128901,0.077557,64438.0,64436.0,0.38282043]
[1724625129111,0.091557,64438.0,64436.0,0.38282043]
[1724625129300,0.091557,64438.0,64436.0,0.001]
[1724625129501,0.18457231,64438.0,64436.0,0.001]
[1724625129712,0.17057231,64437.0,64436.0,0.001]
[1724625130508,0.077557,64437.0,64436.0,0.001]
[1724625131509,0.077557,64437.0,64431.0,0.0002329]
[1724625131510,0.077562,64433.0,64431.0,0.0002329]
[1724625131913,0.077564,64432.0,64431.0,0.0002329]
[1724625132308,0.077964,64432.0,64431.0,0.0002329]
[1724625133009,0.15509027,64432.0,64431.0,0.0002329]
[1724625133214,0.077964,64432.0,64431.0,0.0002329]
[1724625134207,0.077964,64432.0,64419.0,0.0471]
[1724625134208,0.287964,64432.0,64420.0,1.2285]
[1724625134403,0.13929465,64422.0,64420.0,1.2585]
[1724625134717,0.077576,64422.0,64420.0,0.3908]
[1724625134918,0.0004,64421.0,64420.0,0.3908]
[1724625135411,0.0004,64421.0,64420.0,0.3918]
[1724625135914,0.0004,64421.0,64420.0,0.49036277]
[1724625136219,0.0002329,64427.0,64420.0,1.27846477]
[1724625136412,0.0002329,64427.0,64426.0,0.438371]
[1724625136617,0.09257798,64440.0,64426.0,0.438371]
[1724625136618,0.077548,64445.0,64430.0,0.21]
[1724625136917,0.049,64448.0,64443.0,0.3608]
[1724625137107,0.049,64448.0,64443.0,0.3708]
[1724625137911,0.077549,64444.0,64443.0,0.3608]